bitfinex/quotes_BTCUSD_20220304
["timestamp","ask_amount","ask_price","bid_price","bid_amount"]
[1646405327059,0.07642302,40782.0,40775.0,0.0135515]
[1646405327302,0.07642302,40777.0,40756.0,0.50162597]
[1646405327506,0.14,40778.0,40761.0,0.061366]
[1646405327507,0.20016,40778.0,40761.0,0.061366]
[1646405327703,0.4664,40799.0,40782.0,0.32291345]
[1646405327704,0.0039,40786.0,40782.0,0.32291345]
[1646405327901,0.07642302,40801.0,40782.0,0.32291345]
[1646405327902,0.31402286,40798.0,40783.0,0.0140004]
[1646405328104,0.2,40805.0,40784.0,0.42927]
[1646405328105,0.00372,40805.0,40784.0,0.42927]
[1646405328305,0.00372,40805.0,40791.0,0.01218283]
[1646405328603,0.88795964,40807.0,40800.0,0.01471321]
[1646405328801,0.88795964,40807.0,40792.0,0.24769419]
[1646405328802,0.88795964,40807.0,40801.0,0.0413]
[1646405329001,0.88795964,40807.0,40801.0,0.05331827]
[1646405329201,0.88795964,40807.0,40801.0,0.00331827]
[1646405329401,0.14,40803.0,40801.0,0.00331827]
[1646405329606,0.88795964,40807.0,40801.0,0.00331827]
[1646405329607,0.88795964,40807.0,40802.0,0.07062257]
[1646405329803,0.5,40822.0,40803.0,1.4413]
[1646405330003,0.15,40820.0,40811.0,0.27467725]
[1646405330302,0.65,40822.0,40811.0,0.05]
[1646405330503,0.15,40813.0,40803.0,0.163891]
[1646405330704,0.15,40813.0,40796.0,0.31402286]
[1646405330705,0.450373,40801.0,40796.0,0.31402286]
[1646405330962,0.450373,40801.0,40793.0,0.05]
[1646405330963,0.14,40797.0,40793.0,0.05]
[1646405331164,0.4491475,40801.0,40800.0,0.32856209]
[1646405331362,0.5891475,40801.0,40795.0,0.061309]
[1646405331564,0.5891475,40801.0,40784.0,0.0413]
[1646405331565,0.14,40797.0,40784.0,0.0413]
[1646405331763,0.14,40797.0,40777.0,0.47980376]
[1646405331764,0.2,40797.0,40777.0,0.4659]
[1646405331965,0.4491475,40801.0,40778.0,0.31402286]
[1646405332168,0.4491475,40801.0,40781.0,0.061329]
[1646405332364,0.4491475,40801.0,40798.0,0.26901177]
[1646405332567,0.15,40815.0,40798.0,0.27973792]
[1646405332768,0.6,40822.0,40809.0,0.21272399]
[1646405332769,0.31402286,40819.0,40809.0,0.21272399]
[1646405332965,0.2499,40826.0,40810.0,0.31402286]
[1646405333163,0.2499,40826.0,40799.0,1.39]
[1646405333164,0.2499,40826.0,40803.0,0.0413]
[1646405333365,0.15,40821.0,40811.0,0.32725856]
[1646405333564,0.14,40817.0,40811.0,0.37725856]
[1646405333767,0.15,40818.0,40811.0,0.37725856]
[1646405333965,0.2499,40826.0,40811.0,0.37725856]
[1646405334163,0.2499,40826.0,40802.0,0.0413]
[1646405334164,0.15,40818.0,40802.0,0.0413]
[1646405334366,0.15,40812.0,40799.0,0.5378]
[1646405334570,0.15,40801.0,40792.0,8.793e-05]
[1646405334833,0.15,40810.0,40792.0,8.793e-05]
[1646405334834,0.35,40793.0,40792.0,8.793e-05]
[1646405335029,0.49,40793.0,40792.0,8.793e-05]
[1646405335335,0.49,40793.0,40763.0,0.01432846]
[1646405335336,0.2,40790.0,40765.0,0.03913461]
[1646405335534,0.15,40777.0,40765.0,0.02697]
[1646405335731,0.2,40780.0,40765.0,0.02697]
[1646405335732,0.15,40768.0,40765.0,0.02697]
[1646405335929,0.14,40766.0,40761.0,0.001]
[1646405336129,0.31402286,40767.0,40761.0,0.001]
[1646405336130,0.29,40762.0,40761.0,0.001]
[1646405336329,0.60402286,40762.0,40761.0,0.001]
[1646405336530,0.2,40769.0,40761.0,0.001]
[1646405336731,0.24219437,40771.0,40761.0,0.001]
[1646405336732,0.14,40765.0,40761.0,0.001]
[1646405336930,0.35540048,40776.0,40761.0,0.001]
[1646405336931,0.14,40762.0,40761.0,0.001]
[1646405337232,0.15,40773.0,40769.0,0.001]
[1646405337434,0.00929455,40770.0,40769.0,0.001]
[1646405337629,0.32331741,40770.0,40769.0,0.001]
[1646405337828,0.32331741,40770.0,40751.0,0.0011]
[1646405337829,0.52394665,40770.0,40751.0,0.0011]
[1646405338032,0.35,40756.0,40751.0,0.0011]
[1646405338228,0.35,40756.0,40751.0,0.0001]
[1646405338229,0.67331752,40756.0,40751.0,0.0001]
[1646405338460,0.67331752,40756.0,40726.0,0.0011]
[1646405338461,0.24088746,40738.0,40726.0,0.0011]
[1646405338661,0.29,40752.0,40726.0,0.0011]
[1646405338662,0.31402286,40737.0,40726.0,0.0011]
[1646405338859,0.06144,40745.0,40726.0,0.0011]
[1646405338860,0.2499,40739.0,40726.0,0.0011]
[1646405339057,0.15,40735.0,40726.0,0.0011]
[1646405339457,0.14,40731.0,40717.0,0.28422286]
[1646405339661,0.31761404,40738.0,40702.0,0.2287]
[1646405339662,0.15,40722.0,40704.0,0.76602286]
[1646405339862,0.15,40722.0,40704.0,0.452]
[1646405340063,0.2912,40730.0,40705.0,0.32683891]
[1646405340064,0.2499,40730.0,40705.0,0.32683891]
[1646405340260,0.2499,40730.0,40705.0,0.01281605]
[1646405340460,0.27059576,40729.0,40705.0,0.01281605]
[1646405340661,0.27059576,40729.0,40703.0,0.184309]
[1646405340662,0.07964395,40705.0,40703.0,0.184309]
[1646405340959,0.2,40736.0,40704.0,0.31402286]
[1646405341161,0.05,40741.0,40712.0,0.122865]
[1646405341360,0.2499,40743.0,40719.0,0.122859]
[1646405341560,0.2499,40743.0,40738.0,0.07416427]
[1646405341763,0.00098384,40739.0,40736.0,0.30043054]
[1646405341959,0.00098382,40737.0,40736.0,0.30043054]
[1646405342220,0.4532,40757.0,40736.0,0.30043054]
[1646405342221,0.0039,40767.0,40738.0,0.01626701]
[1646405342423,0.0039,40767.0,40747.0,0.01356333]
[1646405342625,0.4532,40772.0,40768.0,0.07424758]
[1646405342817,0.4532,40772.0,40752.0,0.31402286]
[1646405342818,0.22274273,40759.0,40752.0,0.31402286]
[1646405343019,0.13643667,40779.0,40759.0,0.26211262]
[1646405343020,0.30318433,40770.0,40759.0,0.26211262]
[1646405343219,0.0256332,40781.0,40761.0,0.061367]
[1646405343421,0.13643667,40786.0,40761.0,0.07493033]
[1646405343618,0.13643667,40783.0,40765.0,0.02986043]
[1646405343817,5.17357252,40773.0,40761.0,0.061367]
[1646405344018,5.17357252,40773.0,40761.0,0.32807553]
[1646405344223,0.00025585,40791.0,40770.0,0.01356333]
[1646405344420,0.00025585,40791.0,40777.0,0.01356333]
[1646405344621,0.00025585,40791.0,40790.0,0.02423]
[1646405344820,0.00025585,40791.0,40778.0,0.122665]
[1646405344821,0.13643667,40806.0,40786.0,0.0913]
[1646405345022,0.13643667,40806.0,40799.0,0.05436]
[1646405345223,0.13643667,40806.0,40787.0,0.03764]
[1646405345224,0.13901618,40802.0,40791.0,0.05]
[1646405345422,0.15,40800.0,40779.0,0.5036]
[1646405345620,0.13643667,40785.0,40765.0,0.0413]
[1646405345821,0.31402286,40784.0,40770.0,0.05]
[1646405346063,0.31402286,40784.0,40762.0,0.4536]
[1646405346253,0.31402286,40784.0,40764.0,0.061362]
[1646405346254,0.40208314,40774.0,40764.0,0.061362]
[1646405346453,0.13643667,40774.0,40762.0,0.32967233]
[1646405346652,0.2499,40779.0,40764.0,0.122714]
[1646405346856,0.2399,40779.0,40764.0,0.122714]
[1646405347052,0.13643667,40780.0,40764.0,0.122714]
[1646405347256,0.13643667,40780.0,40765.0,0.31402286]
[1646405347452,0.13901618,40776.0,40769.0,0.061356]
[1646405347657,0.42780913,40793.0,40765.0,0.31402286]
[1646405347658,0.19360412,40796.0,40772.0,0.9]
[1646405347856,0.19360412,40796.0,40778.0,0.01575015]
[1646405348053,0.2,40790.0,40777.0,0.122675]
[1646405348254,0.24088746,40788.0,40771.0,0.4998]
[1646405348454,0.31402286,40789.0,40771.0,0.05]
[1646405348755,0.31402286,40792.0,40768.0,0.05]
[1646405348953,0.15,40789.0,40763.0,0.1]
[1646405349253,0.24389122,40801.0,40764.0,1.73435286]
[1646405349453,0.15,40796.0,40766.0,0.01298226]
[1646405349697,0.2,40799.0,40784.0,0.28727146]
[1646405349698,0.15,40799.0,40784.0,0.28727146]
[1646405349901,0.19360412,40798.0,40784.0,0.28727146]
[1646405350102,0.2499,40801.0,40784.0,0.28727146]
[1646405350299,0.13901618,40797.0,40784.0,0.33727146]
[1646405350501,0.15,40795.0,40785.0,0.122644]
[1646405350698,0.31402286,40794.0,40785.0,0.122644]
[1646405350901,0.267932,40784.0,40773.0,0.183986]
[1646405351202,0.46402286,40783.0,40770.0,0.061351]
[1646405351400,0.13901618,40779.0,40774.0,0.21273721]
[1646405351601,0.13901618,40775.0,40770.0,0.061351]
[1646405351802,0.267932,40784.0,40774.0,0.0153067]
[1646405352099,0.267932,40784.0,40774.0,0.31402286]
[1646405352298,0.267932,40784.0,40779.0,0.07488677]
[1646405352598,0.267932,40784.0,40772.0,0.2548417]
[1646405352800,0.267932,40784.0,40776.0,0.122654]
[1646405353003,0.267932,40784.0,40772.0,0.2548417]
[1646405353668,0.267932,40784.0,40770.0,0.061338]
[1646405353870,0.27819582,40783.0,40774.0,0.30078648]
[1646405354068,0.50195266,40771.0,40766.0,0.3]
[1646405354272,0.50195266,40771.0,40759.0,3.1233147]
[1646405354273,0.50195266,40771.0,40767.0,0.47852617]
[1646405354571,0.50195266,40771.0,40742.0,0.001]
[1646405354572,0.35,40768.0,40742.0,0.001]
[1646405354770,0.50195266,40771.0,40742.0,0.001]
[1646405354771,0.30114842,40767.0,40742.0,0.001]
[1646405354971,0.26114842,40770.0,40750.0,0.122824]
[1646405355169,0.41114842,40770.0,40750.0,0.0001]
[1646405355571,0.41114842,40770.0,40766.0,0.06495824]
[1646405355572,0.15,40770.0,40766.0,0.06495824]
[1646405355768,0.24088746,40775.0,40766.0,0.06495824]
[1646405355968,0.23490412,40791.0,40761.0,0.31162866]
[1646405355969,0.30114842,40779.0,40761.0,0.31162866]
[1646405356369,0.24088746,40775.0,40761.0,0.31162866]
[1646405356568,0.2,40776.0,40750.0,0.0501]
[1646405356770,0.12577,40760.0,40754.0,0.22439755]
[1646405356969,0.13901618,40756.0,40750.0,0.0001]
[1646405357223,0.24088746,40771.0,40750.0,0.0001]
[1646405357224,0.13901618,40752.0,40750.0,0.0001]
[1646405357420,0.1,40770.0,40750.0,0.0001]
[1646405357421,0.13901618,40751.0,40750.0,0.0001]
[1646405357621,0.13901618,40751.0,40750.0,0.25847915]
[1646405357820,0.12577,40759.0,40750.0,0.25847915]
[1646405358022,0.13901618,40755.0,40750.0,0.0001]
[1646405358226,0.70567364,40751.0,40750.0,0.0001]
[1646405358424,0.4401646,40751.0,40743.0,0.0011]
[1646405358625,0.12577,40744.0,40737.0,0.001]
[1646405358825,0.13901618,40740.0,40737.0,0.001]
[1646405359023,0.13901618,40738.0,40737.0,0.001]
[1646405359223,0.13901618,40738.0,40732.0,0.001]
[1646405359224,0.6900646,40738.0,40732.0,0.001]
[1646405359423,0.13901618,40734.0,40732.0,0.001]
[1646405359626,0.13901618,40733.0,40732.0,0.001]
[1646405359825,0.13901618,40733.0,40731.0,0.001]
[1646405359826,0.30114842,40737.0,40731.0,0.0001]
[1646405360024,0.12577,40732.0,40731.0,0.0001]
[1646405360424,0.12577,40740.0,40731.0,0.0001]
[1646405360627,0.30114842,40741.0,40731.0,0.0001]
[1646405360829,0.13901618,40737.0,40731.0,0.0001]
[1646405361061,0.13901618,40733.0,40731.0,0.0001]
[1646405361265,0.5659346,40732.0,40709.0,0.0021]
[1646405361562,1.4,40731.0,40709.0,0.0021]
[1646405361759,0.18990409,40725.0,40710.0,0.1826873]
[1646405362060,0.12577,40730.0,40711.0,0.30114842]
[1646405362260,2.80344868,40734.0,40710.0,0.1776873]
[1646405362261,0.122858,40734.0,40710.0,0.1776873]
[1646405362462,0.122858,40734.0,40716.0,0.061425]
[1646405362463,0.117858,40734.0,40716.0,0.061425]
[1646405362673,0.2499,40738.0,40723.0,0.367939]
[1646405362861,0.24323134,40744.0,40737.0,0.45904965]
[1646405363061,0.13901618,40740.0,40724.0,0.40114842]
[1646405363261,0.24323134,40744.0,40736.0,0.06438559]
[1646405363467,0.061403,40748.0,40737.0,0.30114842]
[1646405363468,0.13901618,40740.0,40737.0,0.30114842]
[1646405363660,0.13901618,40740.0,40731.0,0.061403]
[1646405363661,0.2423,40759.0,40733.0,0.30114842]
[1646405364162,0.2769633,40750.0,40743.0,0.05]
[1646405364364,0.3383623,40750.0,40743.0,0.05]
[1646405364562,0.2769633,40750.0,40731.0,0.32537842]
[1646405364799,0.2769633,40750.0,40736.0,0.061395]
[1646405364999,0.12577,40756.0,40736.0,0.36697108]
[1646405365203,0.02564258,40766.0,40736.0,0.36697108]
[1646405365204,0.05,40766.0,40759.0,0.16902148]
[1646405365406,0.20148835,40757.0,40744.0,0.184096]
[1646405365599,0.20148835,40757.0,40745.0,0.0413]
[1646405365798,0.20148835,40757.0,40755.0,0.27270622]
[1646405366004,0.20148835,40757.0,40750.0,0.0413]
[1646405366203,0.20148835,40757.0,40737.0,0.31415871]
[1646405366204,0.13901618,40753.0,40737.0,0.31418862]
[1646405366401,0.20148835,40757.0,40737.0,0.122775]
[1646405366600,0.20148835,40757.0,40738.0,0.30710014]
[1646405366800,0.19648835,40757.0,40738.0,0.30710014]
[1646405366999,0.19648835,40757.0,40749.0,0.24057261]
[1646405367501,0.13901618,40753.0,40749.0,0.29057261]
[1646405367702,0.13901618,40750.0,40749.0,0.29057261]
[1646405367901,0.19648835,40757.0,40749.0,0.29057261]
[1646405368203,0.19648835,40757.0,40755.0,0.34195828]
[1646405368450,0.19648835,40757.0,40755.0,0.05]
[1646405368749,0.19648835,40757.0,40749.0,0.24057261]
[1646405368750,4.32,40756.0,40749.0,0.24057261]
[1646405368949,0.66934582,40745.0,40740.0,0.122769]
[1646405369148,0.66934582,40745.0,40733.0,3.07919671]
[1646405369149,0.65579453,40745.0,40733.0,3.12919671]
[1646405369348,0.65579453,40745.0,40735.0,0.23390211]
[1646405369547,0.65579453,40745.0,40736.0,0.392169]
[1646405369548,3.59990001,40743.0,40736.0,0.392169]
[1646405369750,3.59990001,40743.0,40737.0,0.367939]
[1646405369951,3.59990001,40743.0,40739.0,0.392169]
[1646405370151,0.19648835,40757.0,40741.0,1.4]
[1646405370354,0.19648835,40757.0,40742.0,0.05041254]
[1646405370355,0.05199879,40757.0,40742.0,0.05041254]
[1646405370564,0.15,40774.0,40747.0,0.26083605]
[1646405370751,0.2368,40781.0,40749.0,1.4]
[1646405370952,0.26701646,40761.0,40754.0,0.061357]
[1646405371149,0.26701646,40761.0,40755.0,0.71494264]
[1646405371351,0.26701646,40761.0,40760.0,0.05412921]
[1646405371550,0.15,40775.0,40760.0,0.06553]
[1646405371750,0.24000001,40761.0,40760.0,0.0913]
[1646405372221,0.24000001,40761.0,40760.0,0.05]
[1646405372423,0.15,40767.0,40760.0,0.05]
[1646405372622,0.15,40767.0,40761.0,0.18658203]
[1646405372824,0.15,40775.0,40761.0,0.54067285]
[1646405373027,0.2368,40781.0,40761.0,0.54067285]
[1646405373028,0.15,40782.0,40764.0,0.02423]
[1646405373225,0.19377559,40787.0,40768.0,0.02423]
[1646405373428,0.15,40795.0,40768.0,0.02423]
[1646405373429,0.1938087,40796.0,40770.0,0.02423]
[1646405373625,0.1938087,40798.0,40786.0,0.02423]
[1646405373826,0.242657,40793.0,40786.0,0.02423]
[1646405374031,0.242657,40793.0,40791.0,0.21614646]
[1646405374032,0.01763812,40793.0,40791.0,0.21614646]
[1646405374225,0.32135996,40802.0,40790.0,0.0287]
[1646405374426,0.34201684,40804.0,40770.0,0.00568582]
[1646405374427,0.15,40791.0,40770.0,0.00568582]
[1646405374627,0.34201684,40804.0,40770.0,0.00568582]
[1646405374628,0.15,40785.0,40770.0,0.5]
[1646405374823,0.32135996,40784.0,40770.0,0.5]
[1646405375024,0.32135996,40784.0,40772.0,0.05]
[1646405375025,0.32689964,40778.0,40772.0,0.05]
[1646405375222,0.32135996,40787.0,40773.0,0.23543622]
[1646405375423,0.47135996,40794.0,40773.0,0.23543622]
[1646405375623,0.47135996,40794.0,40777.0,0.05783893]
[1646405375976,0.47135996,40794.0,40774.0,0.07365677]
[1646405375977,0.11567785,40775.0,40774.0,0.07365677]
[1646405376177,0.11567785,40775.0,40773.0,0.23543622]
[1646405376778,0.11567785,40775.0,40773.0,0.28543622]
[1646405377380,0.11067785,40775.0,40773.0,0.28543622]
[1646405377979,0.11067785,40775.0,40774.0,0.66707495]
[1646405378177,0.11067785,40775.0,40774.0,0.5]
[1646405378379,0.11067785,40775.0,40774.0,0.55]
[1646405379381,0.11067785,40775.0,40774.0,0.5]
[1646405379580,0.57508261,40775.0,40764.0,0.05]
[1646405379815,0.57508261,40775.0,40762.0,0.5]
[1646405379816,0.15,40768.0,40762.0,0.5]
[1646405380011,0.43606643,40775.0,40749.0,0.051]
[1646405380012,0.08901618,40764.0,40749.0,0.051]
[1646405380209,0.23703177,40753.0,40751.0,0.28154656]
[1646405380407,0.32538858,40758.0,40751.0,0.28154656]
[1646405380613,0.061388,40759.0,40749.0,0.001]
[1646405381309,0.30594257,40758.0,40749.0,0.001]
[1646405381509,0.26594257,40758.0,40751.0,0.26701824]
[1646405381713,0.26594257,40758.0,40749.0,0.001]
[1646405381909,0.14672761,40739.0,40737.0,0.640148]
[1646405382109,0.14672761,40739.0,40737.0,0.184148]
[1646405382313,0.00041632,40739.0,40738.0,0.7386]
[1646405382512,0.00041632,40739.0,40736.0,0.122767]
[1646405382711,0.34200098,40737.0,40734.0,0.0245]
[1646405382914,0.34200098,40737.0,40732.0,0.2511]
[1646405382915,0.08901618,40735.0,40732.0,0.2511]
[1646405383110,0.2529848,40737.0,40732.0,0.2511]
[1646405383558,0.00041632,40739.0,40732.0,0.2511]
[1646405383758,0.00041632,40739.0,40732.0,0.2521]
[1646405383759,0.20873207,40736.0,40732.0,0.2521]
[1646405383961,0.061416,40736.0,40732.0,0.2521]
[1646405384559,0.061416,40736.0,40732.0,0.498383]
[1646405384959,0.08901618,40733.0,40732.0,0.2521]
[1646405385361,0.32399174,40733.0,40732.0,0.21029304]
[1646405385562,0.46399174,40733.0,40732.0,0.21029304]
[1646405385759,0.14,40733.0,40732.0,0.21029304]
[1646405385963,0.061416,40736.0,40732.0,0.45334883]
[1646405386159,0.00041632,40739.0,40735.0,0.0670516]
[1646405386359,0.00041632,40739.0,40735.0,0.0912816]
[1646405386561,0.00041632,40739.0,40737.0,0.02423]
[1646405387606,0.00041632,40739.0,40735.0,0.05]
[1646405387806,0.00041632,40739.0,40732.0,0.21029304]
[1646405388009,0.25201326,40737.0,40732.0,0.21029304]
[1646405388310,0.00041632,40739.0,40732.0,0.21029304]
[1646405388311,0.00041632,40739.0,40736.0,0.16551731]
[1646405388610,0.00041632,40739.0,40721.0,0.02999]
[1646405388611,0.15,40737.0,40721.0,0.02999]
[1646405388809,0.24088746,40725.0,40721.0,0.02999]
[1646405389007,0.54785661,40734.0,40714.0,0.0011]
[1646405389008,0.05997999,40720.0,40714.0,0.0011]
[1646405389406,0.05997999,40720.0,40715.0,0.16199542]
[1646405389610,0.05997999,40720.0,40718.0,0.02423]
[1646405390008,0.05997999,40720.0,40717.0,0.05203559]
[1646405390009,0.05997999,40720.0,40719.0,0.26423]
[1646405390208,0.05997999,40720.0,40719.0,0.47178368]
[1646405390409,0.05997999,40720.0,40719.0,0.44755368]
[1646405390608,0.05997999,40720.0,40719.0,0.74002129]
[1646405390810,0.53998,40720.0,40719.0,0.74002129]
[1646405391062,0.54785661,40734.0,40719.0,0.76579129]
[1646405391262,0.17561371,40727.0,40719.0,0.76579129]
[1646405391465,0.54785661,40734.0,40724.0,0.7386]
[1646405391663,0.2499,40743.0,40733.0,0.02423]
[1646405391862,0.24225609,40730.0,40721.0,0.05]
[1646405392066,0.02423,40750.0,40719.0,0.55823761]
[1646405392067,0.31537936,40737.0,40719.0,0.55823761]
[1646405392268,0.02464632,40739.0,40719.0,0.29]
[1646405392462,0.061422,40737.0,40720.0,0.061427]
[1646405392663,0.061422,40737.0,40731.0,0.01]
[1646405392664,0.031422,40737.0,40731.0,0.01]
[1646405393063,0.00041632,40739.0,40731.0,0.01]
[1646405393265,0.00041632,40739.0,40733.0,0.05]
[1646405393465,0.00041632,40739.0,40733.0,0.111414]
[1646405393664,0.00041632,40739.0,40732.0,0.30081061]
[1646405394465,0.00041632,40739.0,40732.0,0.55841773]
[1646405394706,0.00041632,40739.0,40732.0,0.30081061]
[1646405394909,0.00041632,40739.0,40732.0,0.05]
[1646405395106,0.2499,40738.0,40731.0,0.01]
[1646405395306,0.31914728,40737.0,40731.0,0.01]
[1646405395506,0.14,40733.0,40731.0,0.01]
[1646405395707,0.14,40732.0,40731.0,0.01]
[1646405395907,0.70561896,40734.0,40731.0,0.01]
[1646405396209,0.14,40732.0,40731.0,0.01]
[1646405396405,0.2647315,40734.0,40731.0,0.01]
[1646405396608,0.2647315,40734.0,40721.0,0.122857]
[1646405396609,0.02423,40731.0,40714.0,0.0011]
[1646405396808,0.061447,40726.0,40714.0,0.0011]
[1646405397006,0.02423,40731.0,40714.0,0.0011]
[1646405397007,0.31334368,40716.0,40714.0,0.0011]
[1646405397208,0.24088746,40725.0,40715.0,0.061445]
[1646405397411,0.3178049,40724.0,40715.0,0.061445]
[1646405397908,0.3178049,40724.0,40714.0,0.0011]
[1646405398108,0.27308713,40720.0,40714.0,0.0011]
[1646405398308,0.2499,40717.0,40714.0,0.0011]
[1646405398755,0.24000001,40716.0,40714.0,0.0011]
[1646405399356,0.24000001,40716.0,40715.0,0.2513112]
[1646405399756,0.24000001,40716.0,40715.0,0.05]
[1646405400063,0.24000001,40716.0,40714.0,0.0011]
[1646405400256,0.061452,40715.0,40714.0,0.0011]
[1646405400660,0.24000001,40716.0,40714.0,0.2411]
[1646405400958,1.4,40714.0,40700.0,0.5001]
[1646405401156,1.4,40714.0,40705.0,0.061459]
[1646405401157,0.2,40712.0,40705.0,0.061459]
[1646405401362,0.061468,40709.0,40700.0,0.4552]
[1646405401560,0.061468,40709.0,40700.0,0.0001]
[1646405401561,0.24088746,40705.0,40700.0,0.0001]
[1646405401757,0.3178049,40704.0,40700.0,0.0001]
[1646405401958,0.2499,40704.0,40700.0,0.0001]
[1646405402425,0.31861386,40707.0,40700.0,0.0001]
[1646405402629,0.31861386,40707.0,40696.0,0.122933]
[1646405402630,1.4,40706.0,40699.0,0.061469]
[1646405402829,1.4,40706.0,40697.0,0.02705958]
[1646405402830,0.02423,40700.0,40697.0,0.02705958]
[1646405403026,0.48000001,40704.0,40697.0,0.02705958]
[1646405403027,0.31216516,40698.0,40697.0,0.02705958]
[1646405403229,0.51443156,40698.0,40691.0,0.0021]
[1646405403427,0.3172664,40698.0,40691.0,0.0021]
[1646405403625,0.27470452,40696.0,40691.0,0.0021]
[1646405403828,0.59055714,40696.0,40691.0,0.0021]
[1646405404027,0.31585262,40696.0,40691.0,0.0021]
[1646405404428,0.43085262,40696.0,40691.0,0.0021]
[1646405404629,0.31585262,40696.0,40691.0,0.0021]
[1646405404829,0.2499,40700.0,40691.0,0.0021]
[1646405405029,0.2499,40700.0,40696.0,0.122945]
[1646405405231,0.31585262,40699.0,40691.0,0.0021]
[1646405405630,0.2185803,40698.0,40691.0,0.0021]
[1646405405952,0.115,40696.0,40690.0,0.0021]
[1646405406153,0.37197202,40692.0,40690.0,0.0021]
[1646405406357,0.115,40691.0,40681.0,0.56]
[1646405406557,0.31442492,40690.0,40686.0,0.0002]
[1646405406953,0.31442492,40690.0,40686.0,0.061688]
[1646405407153,0.30237646,40693.0,40686.0,0.11927418]
[1646405407353,0.7199,40688.0,40686.0,0.056688]
[1646405407554,0.7199,40688.0,40686.0,0.106688]
[1646405407760,0.7199,40688.0,40687.0,0.05]
[1646405407953,0.7099,40688.0,40687.0,0.05]
[1646405408153,0.11137148,40688.0,40687.0,0.05]
[1646405408353,0.24000001,40688.0,40687.0,0.111482]
[1646405408552,0.24000001,40688.0,40687.0,0.05]
[1646405409356,9.0,40704.0,40702.0,0.06181006]
[1646405409558,8.0006,40704.0,40703.0,0.31628794]
[1646405409813,7.0013,40704.0,40702.0,0.061459]
[1646405410012,5.0025,40704.0,40702.0,0.061459]
[1646405410215,4.0032,40704.0,40702.0,0.061459]
[1646405410416,2.0045,40704.0,40702.0,0.061459]
[1646405410613,0.0056,40704.0,40703.0,0.28344226]
[1646405410913,0.91205262,40728.0,40706.0,0.085678]
[1646405411124,0.49078746,40730.0,40712.0,0.02423]
[1646405411416,0.49078746,40730.0,40716.0,0.30111105]
[1646405411417,0.2499,40730.0,40716.0,0.30111105]
[1646405411612,0.2499,40730.0,40717.0,0.93781821]
[1646405411815,0.00041632,40739.0,40735.0,0.27312228]
[1646405412015,0.00041632,40739.0,40719.0,1.46141511]
[1646405412016,0.45,40750.0,40733.0,0.31628794]
[1646405412219,0.24363797,40757.0,40732.0,0.0413]
[1646405412416,0.19363797,40759.0,40733.0,0.80595551]
[1646405412623,0.19363797,40766.0,40740.0,0.44836757]
[1646405412821,0.19363797,40772.0,40756.0,0.28006685]
[1646405413023,0.35201684,40779.0,40766.0,0.06975189]
[1646405413024,0.24211319,40778.0,40766.0,0.06975189]
[1646405413224,0.01,40779.0,40762.0,0.44836757]
[1646405413666,0.01,40779.0,40762.0,0.7386]
[1646405413866,0.23473842,40771.0,40761.0,0.05]
[1646405414070,0.23473842,40771.0,40759.0,0.1]
[1646405414071,0.31628794,40770.0,40759.0,0.1]
[1646405414365,0.01,40779.0,40759.0,0.1]
[1646405414366,0.01,40779.0,40759.0,0.05]
[1646405414566,0.01,40779.0,40760.0,0.31628794]
[1646405414767,0.01,40779.0,40761.0,0.1]
[1646405414967,0.24211319,40787.0,40764.0,0.02423]
[1646405415167,0.24211319,40793.0,40770.0,0.061342]
[1646405415371,0.2764327,40789.0,40781.0,0.06862096]
[1646405415571,0.4756,40799.0,40784.0,0.05]
[1646405415768,0.48701319,40800.0,40789.0,0.07476267]
[1646405415769,0.31628794,40797.0,40789.0,0.07476267]
[1646405415969,0.34201684,40806.0,40781.0,0.05]
[1646405415970,0.31628794,40805.0,40792.0,0.05]
[1646405416165,0.7655941,40808.0,40801.0,0.17265576]
[1646405416370,0.31441279,40799.0,40792.0,0.05]
[1646405416569,0.24000001,40796.0,40792.0,0.05]
[1646405416968,0.31128794,40795.0,40792.0,0.05]
[1646405417413,0.23700001,40796.0,40792.0,0.05]
[1646405417616,0.23700001,40796.0,40792.0,0.04168147]
[1646405418014,0.23700001,40796.0,40793.0,0.10018201]
[1646405418219,0.2499,40802.0,40795.0,1.61659033]
[1646405418416,0.2499,40802.0,40795.0,0.26659033]
[1646405418613,0.2499,40802.0,40801.0,0.06348745]
[1646405418812,0.2499,40802.0,40796.0,0.25383684]
[1646405418813,0.2499,40802.0,40796.0,0.23737821]
[1646405419011,0.2499,40802.0,40796.0,0.33737821]
[1646405419212,2.61187595,40816.0,40802.0,8.864e-05]
[1646405419513,0.85,40815.0,40795.0,0.05]
[1646405419715,0.2499,40818.0,40798.0,0.06129]
[1646405419915,0.33862281,40824.0,40804.0,0.7386]
[1646405419916,0.24187343,40824.0,40804.0,0.7386]
[1646405420215,0.34862281,40829.0,40820.0,0.25798065]
[1646405420216,0.26598531,40828.0,40820.0,0.25798065]
[1646405420420,0.25187343,40829.0,40821.0,0.0413]
[1646405420421,0.01,40829.0,40821.0,0.0413]
[1646405420616,0.01,40829.0,40822.0,0.44635841]
[1646405420817,0.01,40829.0,40823.0,0.0413]
[1646405421062,0.01,40829.0,40826.0,0.26056102]
[1646405421262,0.7021066,40834.0,40828.0,1.4]
[1646405421462,0.7021066,40834.0,40830.0,0.05]
[1646405421965,0.115,40831.0,40822.0,0.0413]
[1646405422167,0.35395534,40833.0,40822.0,0.0413]
[1646405422562,0.35395534,40843.0,40824.0,0.05]
[1646405422767,0.26810792,40829.0,40824.0,0.05]
[1646405423063,0.2499,40839.0,40824.0,0.05]
[1646405423064,0.35395534,40838.0,40824.0,0.05]
[1646405423262,2.26383608,40844.0,40824.0,0.05]
[1646405423566,0.30625122,40830.0,40824.0,0.05]
[1646405423762,0.2499,40840.0,40825.0,0.5]
[1646405423962,2.26383608,40844.0,40825.0,0.5]
[1646405423963,0.35395534,40839.0,40825.0,0.5]
[1646405424164,0.35395534,40843.0,40825.0,0.57460276]
[1646405424364,2.26383608,40844.0,40826.0,0.05]